[Event "20th Delhi GM Open 2023"]
[Site "New Delhi"]
[Date "2023.03.27"]
[Round "7.8"]
[White "Suyarov, Mukhammadzokhid"]
[Black "Mirzoev, Azer"]
[Result "1/2-1/2"]
[ECO "D00"]
[WhiteElo "2281"]
[BlackElo "2437"]
[Annotator "TA"]
[PlyCount "180"]
[EventDate "2023.03.23"]
[EventType "swiss"]
[EventCountry "IND"]
[SourceTitle "playchess.com"]
[Source "ChessBase"]
[SourceQuality "1"]
[TimeControl "5400+30"]

{[%evp 9,180,0,0,7,12,8,14,15,16,3,35,37,39,18,33,30,33,26,49,47,44,45,45,54,55,56,69,28,33,16,33,35,43,35,31,11,25,0,0,0,0,0,0,0,0,-40,41,-6,-18,-8,-26,-7,0,-9,-9,-11,0,-11,0,0,0,-11,-13,-37,0,-65,0,0,0,0,7,14,50,0,49,0,0,0,0,0,0,0,42,46,51,39,26,31,60,0,121,0,66,0,101,106,206,76,66,54,93,8,189,0,114,0,188,0,94,51,184,172,187,174,162,181,147,150,154,171,272,254,394,401,382,381,431,412,417,404,359,335,748,594,487,472,376,0,0,0,294,292,266,202,147,0,473,0,0,0,0,0,0,-20,-18,-16,0,0,0,0,0,0,0,-4028,-3993,-651,0,0,0,0,0,0,8]} 1. d4 {[%emt 0:00:02]} d5 {[%emt 0:03:44]} 2. Nc3 {[%emt 0:00:13]} Nf6 {[%emt 0:00:07]} 3. Bf4 {[%emt 0:00:10]} c6 {[%emt 0:00:31]} 4. e3 {[%emt 0:00:08]} Qb6 {[%emt 0:00:13]} 5. a3 {[%emt 0:00:10]} Bf5 {[%emt 0:00:20]} 6. Bd3 {[%emt 0:00:07] [#] D00: 1 d4 d5: Unusual lines.} Bg6 $146 {[%emt 0:01:03]} ({Predecessor:} 6... Bxd3 7. cxd3 Nbd7 8. b4 g6 9. Na4 Qd8 10. Nc5 Nxc5 11. bxc5 Nh5 12. Be5 f6 {1-0 Horvath,D (2424)-Diaz Villagran,R (2325) Titled Tuesday intern op 2nd July blitz 2019 (5)}) 7. Nf3 {[%emt 0:06:40]} Nbd7 {[%emt 0:02:20]} 8. O-O {[%emt 0:03:03]} e6 {[%emt 0:00:04]} 9. b4 {[%emt 0:03:33]} Bxd3 {[%emt 0:04:08]} 10. cxd3 {[%emt 0:03:26]} Be7 {[%emt 0:00:09]} 11. e4 {[%emt 0:00:16]} O-O {[%emt 0:02:20]} 12. e5 {[%emt 0:02:58]} Ne8 {[%emt 0:00:05]} 13. Na4 {[%emt 0:00:25]} Qa6 {[%emt 0:06:09]} 14. Nc5 {[%emt 0:04:26]} Nxc5 {[%emt 0:00:06]} 15. dxc5 {[%emt 0:00:19]} Nc7 {[%emt 0:01:04]} 16. d4 {[%emt 0:19:09]} b6 {[%emt 0:05:33]} 17. Bd2 {[%emt 0:06:20]} bxc5 {[%emt 0:01:02]} 18. bxc5 {[%emt 0:12:22]} Rfb8 {[%emt 0:00:43]} 19. a4 {[%emt 0:00:17]} Rb2 {[%emt 0:06:45]} 20. Bc3 {[%emt 0:03:20]} Rb7 {[%emt 0:00:09]} 21. Qc2 {[%emt 0:04:27]} Rab8 {[%emt 0:00:06]} 22. Nd2 {[%emt 0:02:27]} Qe2 {[%emt 0:07:08]} 23. Rae1 {[%emt 0:02:52]} Qh5 {[%emt 0:01:15]} 24. Re3 {[%emt 0:01:05]} Qf5 {[%emt 0:04:25]} 25. Qd1 {[%emt 0:00:24]} h5 {[%emt 0:09:04]} 26. Rf3 {[%emt 0:01:36]} Qg6 {[%emt 0:02:29]} 27. Rh3 {[%emt 0:03:20]} h4 {[%emt 0:00:18]} (27... Bg5 $15) 28. Qe2 {[%emt 0:04:40]} (28. f4 $14) 28... Qc2 $11 {[%emt 0:02:26]} 29. Qd1 {[%emt 0:01:43] Wards off Rb1} Qxd1 {[%emt 0:02:30]} 30. Rxd1 {[%emt 0:00:01]} g5 {[%emt 0:01:33]} 31. Re3 {[%emt 0:00:45]} Ne8 {[%emt 0:07:41]} 32. h3 {[%emt 0:01:28]} Ng7 {[%emt 0:00:20]} 33. Ree1 {[%emt 0:00:27]} f6 {[%emt 0:01:17]} 34. exf6 {[%emt 0:00:54]} Bxf6 {[%emt 0:00:03]} 35. Kf1 {[%emt 0:00:04]} Kf7 {[%emt 0:00:17]} 36. Ke2 {[%emt 0:00:44]} Kg6 {[%emt 0:08:59]} 37. Rb1 {[%emt 0:01:00]} (37. Kf1 $11) 37... Kf5 {[%emt 0:03:43]} (37... e5 $15 38. Rxb7 (38. dxe5 Be7 $17) 38... Rxb7 39. dxe5 Be7) 38. Rxb7 {[%emt 0:00:59]} Rxb7 {[%emt 0:00:04]} 39. g4+ {[%emt 0:00:05]} Kg6 {[%emt 0:03:33]} 40. Kd3 {[%emt 0:00:15]} Bd8 {[%emt 0:01:11]} 41. Nf3 {[%emt 0:03:07]} Bc7 {[%emt 0:00:11]} 42. Bd2 {[%emt 0:01:36]} (42. Re3 $1 $14) 42... Rb3+ {[%emt 0:00:33]} 43. Ke2 {[%emt 0:00:40]} e5 $1 {[%emt 0:01:48]} 44. Nxg5 {[%emt 0:01:31]} (44. Bxg5 $2 e4 45. Nd2 Rxh3 $19) 44... e4 {[%emt 0:04:57]} 45. f4 $36 {[%emt 0:02:05][%cal Bf2f4,Bf4f5][%mdl 2080] White has the initiative.} Rb2 {[%emt 0:02:36]} 46. f5+ {[%emt 0:00:56]} Kf6 {[%emt 0:00:00]} 47. Nh7+ {[%emt 0:00:00]} Kf7 {[%emt 0:00:00]} 48. Kd1 {[%emt 0:03:49]} Bd8 {[%emt 0:03:57]} 49. Ng5+ {[%emt 0:03:12]} (49. Re2 $14) 49... Kf6 {[%emt 0:00:25]} (49... Kg8 $1 $11 {keeps the balance.}) 50. Nh7+ {[%emt 0:00:37]} (50. Re2 $16) 50... Kf7 $14 {[%emt 0:00:18]} 51. Ng5+ {[%emt 0:00:31]} Kf6 {[%emt 0:00:08]} 52. Bf4 {[%emt 0:00:47]} Rb4 {[%emt 0:05:30]} (52... Rb1+ $16 53. Ke2 Rb3) 53. Nh7+ {[%emt 0:00:36]} (53. Kc2 $1 $18 {and the rest is easy.}) 53... Kf7 $16 {[%emt 0:00:00]} 54. Ke2 {[%emt 0:00:32]} a5 {[%emt 0:00:20]} 55. Ng5+ {[%emt 0:00:46]} (55. Bg5 $16 Rb2+ 56. Ke3 Rb3+ 57. Kd2) 55... Kf6 $2 {[%emt 0:00:05]} (55... Kg8 $1 $11 {and Black has nothing to worry.}) 56. Nh7+ {[%emt 0:00:14]} ({Better is} 56. Rf1 $18) 56... Kf7 {[%emt 0:00:04]} 57. Ng5+ {[%emt 0:00:42]} (57. Rh1 $16) 57... Kf6 $18 {[%emt 0:00:12]} 58. Nh7+ {[%emt 0:00:36]} (58. Rf1 $18) 58... Kf7 $16 {[%emt 0:00:15]} 59. Be5 {[%emt 0:00:30]} Kg8 {[%emt 0:00:47]} (59... Rxa4 $14 60. Rc1 Ra2+ 61. Ke1 Rb2) 60. Nf6+ $18 {[%emt 0:00:09]} Kf7 {[%emt 0:00:01]} 61. Nd7 {[%emt 0:00:22]} Bg5 {[%emt 0:00:49]} 62. Nb8 {[%emt 0:00:27]} Rb3 {[%emt 0:01:11]} 63. Nxc6 {[%emt 0:00:12]} Rxh3 {[%emt 0:00:07]} 64. Rb1 {[%emt 0:00:28] And now Rb7+ would win. White is more active.} Re3+ {[%emt 0:00:29]} (64... Ne8 $142 65. Rb7+ (65. Nxa5 Re3+ 66. Kd1 Rd3+ 67. Kc2 Rd2+ 68. Kc3 h3 $18) 65... Kf8) 65. Kf2 {[%emt 0:00:25]} Rf3+ {[%emt 0:00:08]} (65... Rc3 {was called for.} 66. Rb7+ {[%mdl 64] Deflection} Ke8) 66. Kg1 {[%emt 0:00:23] Threatens to win with Rb7+.} Ne8 {[%emt 0:00:11]} 67. Bd6 {[%emt 0:00:55]} (67. Nxa5 Nf6 $16) 67... Be3+ {[%emt 0:02:01]} 68. Kh1 {[%emt 0:00:00]} Kf6 {[%emt 0:00:32]} (68... Nxd6 $2 69. Ne5+ (69. cxd6 Rh3+ 70. Kg2 Rg3+ 71. Kh1 Rh3+ 72. Kg2 Rg3+ 73. Kh2 Bf4 $18) 69... Ke7 70. cxd6+ Kxd6 71. Nxf3 exf3 72. Rd1 $18) 69. Be7+ {[%emt 0:00:34]} (69. Nxa5 Nxd6 70. cxd6 Rh3+ 71. Kg2 Rg3+ 72. Kh1 Rh3+ 73. Kg2 Rg3+ 74. Kh1 Rh3+ $11) 69... Kg7 {[%emt 0:00:11]} 70. Rb7 {[%emt 0:00:46]} (70. Bxh4 Rh3+ 71. Kg2 Rxh4 $11) 70... h3 $2 {[%emt 0:01:21]} (70... Kh6 71. Ne5 (71. Bxh4 Rh3+ 72. Kg2 Rxh4 $17) 71... Rf1+ 72. Kg2 Rf2+ 73. Kh3 Bf4 74. Nf7+ (74. Bxh4 $2 Rh2#) (74. Rb6+ Kh7 $16) 74... Kg7) 71. Ne5 {[%emt 0:00:44]} (71. Nxa5 Kg8 72. Rb3 Bd2 $15) 71... Rf1+ {[%emt 0:00:15]} 72. Kh2 {[%emt 0:00:01] aiming for Bg5+.} Bxd4 {[%emt 0:00:36]} 73. Ng6 $2 {[%emt 0:01:00]} ({White should try} 73. Bg5+ $18 Kg8 74. Re7 Bxe5+ 75. Rxe5) 73... Kh6 $11 {[%emt 0:01:12]} 74. Kxh3 {[%emt 0:00:23]} e3 $2 {[%emt 0:00:31][%mdl 8192] [#]} (74... Rf3+ $11 {and Black stays safe.} 75. Kg2 Rf2+ 76. Kh3 Rf3+ 77. Kh2 Rf2+ 78. Kh3 Rf3+) 75. Bh4 $1 $18 {[%emt 0:00:58] White threatens g5+ and mate.} Bf6 {[%emt 0:00:24]} (75... Bxc5 $2 76. g5+ Kh5 77. Rh7#) 76. Rb8 {[%emt 0:00:11]} Bxh4 {[%emt 0:00:30]} 77. Kxh4 {[%emt 0:00:50][%mdl 4096] Endgame KRN-KRN} (77. Nxh4 Nf6 78. Rb2 Kg5 $17) (77. Rxe8 $16 Bg5 78. c6 Rh1+ 79. Kg2) 77... Rh1+ $1 $11 {[%emt 0:00:41]} 78. Kg3 {[%emt 0:00:00]} e2 {[%emt 0:00:20]} 79. Rxe8 {[%emt 0:00:02] Rh8+ would kill now.} e1=Q+ {[%emt 0:00:05]} 80. Rxe1 {[%emt 0:00:03]} Rxe1 {[%emt 0:00:03] KR-KN} 81. Kf4 {[%emt 0:00:30]} Re4+ {[%emt 0:00:06]} 82. Kf3 {[%emt 0:00:10]} Kg5 {[%emt 0:00:10]} (82... Rxa4 $5 {[%cal Ra4c4]} 83. Ne5 Re4 84. Nf7+ Kg7 $15) 83. c6 {[%emt 0:02:00]} Rxa4 {[%emt 0:01:24][%cal Oa4e4] ...Re4! is the strong threat.} (83... Rxg4 $2 84. f6 Rg1 85. Kf2 $18) 84. Ne5 {[%emt 0:00:23]} Ra3+ {[%emt 0:00:16]} 85. Ke2 {[%emt 0:00:15]} Rc3 {[%emt 0:00:08] Strongly threatening ...a4.} 86. Nf3+ $2 {[%emt 0:00:50][%mdl 8192] [#]} (86. Kd2 $11 d4 87. Nd7) 86... Kf6 $1 $19 {[%emt 0:00:27]} ({Inferior is} 86... Kxg4 87. f6 Rxc6 88. Ne5+ Kg5 89. Nxc6 $11) 87. Kd2 {[%emt 0:00:10]} Rc4 $2 {[%emt 0:00:31]} ({Less strong is} 87... Rxf3 88. c7 Rf2+ 89. Kd3 $18) ({Black should play} 87... Rc5 $19 {[%cal Oa5a4] White must now prevent ...a4!} 88. g5+ Kxf5 89. Nd4+ Kg6) 88. g5+ $1 $11 {[%emt 0:00:15][%cal Bg4g5,Bg5g6][%mdl 32] The position is equal.} Kxf5 {[%emt 0:00:40][%cal Of5e4] Hoping for ...Ke4!} 89. g6 $1 {[%emt 0:00:01] Intending g7 and mate.} Kf6 {[%emt 0:01:52]} (89... Kxg6 {leads to mate.} 90. Ne5+ Kf6 91. Nxc4 Ke7 92. Nxa5 Kd6 93. Kc3 Kc7 94. Kd3) 90. Ne5 $1 {[%emt 0:00:01][%mdl 64] Deflection, Promotion} Rxc6 {[%emt 0:00:38][%mdl 64] Deflection. Never resign too early!   Weighted Error Value: White=0.36/Black=0.24 (precise)} 1/2-1/2

[Event "20th Delhi GM Open 2023"]
[Site "New Delhi"]
[Date "2023.03.27"]
[Round "7.9"]
[White "Madaminov, Mukhiddin"]
[Black "Anup Shankar R"]
[Result "1-0"]
[ECO "C41"]
[WhiteElo "2436"]
[BlackElo "1848"]
[Annotator "TA"]
[PlyCount "59"]
[EventDate "2023.03.23"]
[EventType "swiss"]
[EventCountry "IND"]
[SourceTitle "playchess.com"]
[Source "ChessBase"]
[SourceQuality "1"]
[TimeControl "5400+30"]

{[%evp 9,59,7,64,62,42,37,83,90,78,31,147,87,134,147,216,160,177,144,140,146,178,147,241,237,247,232,234,230,298,295,288,283,284,292,279,274,2149,1975,29984,29985,29985,29982,29986,29987,29987,29988,29988,29989,29989,404,29985,29986]} 1. d4 {[%emt 0:00:12]} d6 {[%emt 0:04:38]} 2. e4 {[%emt 0:00:22]} Nf6 {[%emt 0:00:03]} 3. Nc3 {[%emt 0:00:09]} e5 {[%emt 0:00:02]} 4. Nf3 {[%emt 0:00:07]} Nbd7 {[%emt 0:00:04]} 5. Rg1 {[%emt 0:00:12]} exd4 {[%emt 0:03:47]} (5... c6 $11) 6. Nxd4 $14 {[%emt 0:00:29] C41: Philidor Defence.} Nc5 {[%emt 0:02:49]} 7. f3 {[%emt 0:05:36]} Be7 {[%emt 0:05:50]} (7... c6 $14) 8. Be3 {[%emt 0:00:32] White is better.} c6 {[%emt 0:00:23]} 9. Qd2 {[%emt 0:00:41] [#]} (9. g4 $16) 9... Bd7 $146 {[%emt 0:05:56] [#]} (9... d5 $1 $14) ({Predecessor:} 9... O-O 10. g4 Re8 11. O-O-O d5 12. g5 Nh5 13. exd5 Bd6 14. Kb1 Qe7 15. Re1 Bf4 {1-0 Indjic,A (2618)-Triapishko,A (2506) Titled Tuesday intern op 01st Sept blitz 2020 (10)}) 10. O-O-O {[%emt 0:07:05]} ({White should play} 10. g4 $1) 10... b5 {[%emt 0:05:03]} (10... h5 $142) 11. g4 $16 {[%emt 0:00:40]} h6 {[%emt 0:05:34]} (11... g6 $16 12. Bh6 Qb6) 12. h4 {[%emt 0:06:38]} b4 {[%emt 0:03:23]} 13. Nce2 {[%emt 0:00:26]} Ncxe4 {[%emt 0:00:21]} 14. fxe4 {[%emt 0:00:07]} Nxe4 {[%emt 0:00:03]} 15. Qxb4 {[%emt 0:00:29]} c5 {[%emt 0:06:28]} (15... d5 $16 16. Qa4 Nc5) 16. Qc4 {[%emt 0:00:13]} cxd4 {[%emt 0:01:35]} 17. Qxd4 {[%emt 0:00:18]} Nc5 {[%emt 0:05:13]} 18. Nf4 {[%emt 0:05:32] And now Bc4 would win.} (18. Qxg7 $2 {perishes.} Bf6 $19) 18... Ne6 {[%emt 0:11:53]} 19. Nxe6 {[%emt 0:00:58]} Bxe6 {[%emt 0:00:04] [#]} 20. g5 {[%emt 0:01:24] Repels Bf6} (20. Qxg7 $2 {too greedy.} Bf6 $19) 20... hxg5 {[%emt 0:01:20]} 21. Qxg7 {[%emt 0:07:37]} Bf6 {[%emt 0:10:55]} 22. Bb5+ {[%emt 0:00:36]} (22. Bxg5 Bxg7 23. Bxd8 Bxb2+ 24. Kxb2 Rxd8 $11) 22... Ke7 $2 {[%emt 0:00:03]} (22... Bd7 23. Bxd7+ {[%mdl 64] Deflection} (23. Bxg5 Bxg7 24. Bxd8 Bxb5 $17) 23... Kxd7 24. Qxf7+ Qe7 25. Qxe7+ Kxe7 26. hxg5 Be5) 23. Bxg5 $18 {[%emt 0:07:08]} Bxg5+ {[%emt 0:00:38]} 24. Qxg5+ {[%emt 0:00:03]} Kf8 {[%emt 0:00:08]} 25. Qg7+ {[%emt 0:00:03]} Ke7 {[%emt 0:00:05]} 26. Rdf1 {[%emt 0:00:09]} d5 {[%emt 0:01:50] [#]} 27. Rxf7+ $3 {[%emt 0:00:40][%mdl 512]} Bxf7 {[%emt 0:01:14]} 28. Qe5+ {[%emt 0:00:03]} Be6 {[%emt 0:01:56]} 29. Rg7+ {[%emt 0:00:07]} Kf8 {[%emt 0:00:03] ...Rh6 would be deadly.} 30. Rb7 {[%emt 0:00:06] Excellently played by Madaminov!   Weighted Error Value: White=0.47/Black=0.50} 1-0

[Event "20th Delhi GM Open 2023"]
[Site "New Delhi"]
[Date "2023.03.28"]
[Round "8.1"]
[White "Krasenkow, Michal"]
[Black "Murzin, Volodar"]
[Result "1/2-1/2"]
[ECO "D47"]
[WhiteElo "2527"]
[BlackElo "2554"]
[Annotator "TA"]
[PlyCount "140"]
[EventDate "2023.03.23"]
[EventType "swiss"]
[EventCountry "IND"]
[SourceTitle "playchess.com"]
[Source "ChessBase"]
[SourceQuality "1"]
[TimeControl "5400+30"]

{[%evp 19,140,14,17,14,22,11,41,0,33,0,0,-21,-11,-64,-66,-71,-60,-39,0,-15,19,20,38,0,0,0,22,22,25,25,35,24,54,59,52,25,25,25,25,25,25,25,25,28,50,34,40,37,37,37,37,37,37,27,44,37,37,16,20,4,44,44,45,54,53,52,65,65,65,65,63,64,64,65,65,64,65,65,66,45,86,95,104,50,50,50,50,50,50,50,64,64,65,65,65,65,65,65,65,65,65,65,71,45,45,18,18,18,18,18,18,18,18,18,91,91,84,91,98,98,98,98,98]} 1. d4 {[%emt 0:00:02]} d5 {[%emt 0:00:25]} 2. c4 {[%emt 0:00:07]} c6 {[%emt 0:00:03]} 3. Nf3 {[%emt 0:00:26]} Nf6 {[%emt 0:00:06]} 4. Nc3 {[%emt 0:00:06]} e6 {[%emt 0:00:11]} 5. e3 {[%emt 0:00:39]} Nbd7 {[%emt 0:00:05]} 6. Bd3 {[%emt 0:00:18]} dxc4 {[%emt 0:03:56]} 7. Bxc4 {[%emt 0:00:13]} b5 {[%emt 0:00:06]} 8. Bd3 {[%emt 0:00:04]} b4 {[%emt 0:02:42]} 9. Ne4 {[%emt 0:00:51]} Bb7 {[%emt 0:08:56]} 10. Nxf6+ $1 {[%emt 0:00:55] 10.Nxf6+ is better than 10.0-0.} Nxf6 {[%emt 0:00:08]} 11. e4 {[%emt 0:00:05][%cal Be3e4,Be4e5][%mdl 32] D47: Semi-Slav: Meran System.} Be7 {[%emt 0:00:25]} 12. e5 {[%emt 0:09:32]} Nd7 {[%emt 0:00:14]} 13. Be4 {[%emt 0:03:19] [#] White is slightly better.} O-O $146 {[%emt 0:03:18][%cal Bh8f8,Bf8f7,Bf7f5][%mdl 32]} ({Predecessor:} 13... Qc7 14. O-O h6 15. Be3 O-O 16. Rc1 Rfd8 17. Nd2 f5 18. Qb3 Nf8 19. Bxf5 Qd7 {1-0 Jensen,J (2182)-Matthiesen,A (2287) Aarhus Summer cand 2002 (6)}) 14. h4 {[%emt 0:01:10][%cal Oe4h7]} f5 15. exf6 {[%emt 0:03:39]} Nxf6 {[%emt 0:06:50]} 16. Qb3 {[%emt 0:08:15]} Nxe4 $15 {[%emt 0:26:37]} 17. Qxe6+ {[%emt 0:00:56]} Rf7 {[%emt 0:00:10][%cal Oe7f6]} 18. Qxe4 {[%emt 0:00:07]} Bd6 {[%emt 0:00:11] Threatens to win with ...Re7.} (18... Qd5 19. Qxd5 cxd5 20. Ne5 $14) (18... Bf6 $5 {[%cal Rf7e7]} 19. Qe2 Qa5 $17) 19. Qd3 {[%emt 0:07:35]} ({But not} 19. Ng5 $2 Re7 20. Ne6 Qe8 $19) 19... Qa5 {[%emt 0:10:52] aiming for ...Ba6.} (19... h6 {simplifies} 20. Be3 Qa5 21. Qb3 Qf5) 20. Ng5 {[%emt 0:04:13]} (20. O-O {seems wilder.} Ba6 21. Qb3 Bxf1 22. Ng5) 20... Qf5 {[%emt 0:00:36]} (20... Re8+ {keeps more tension.} 21. Kd1 Rf5 22. Re1 Rxe1+ 23. Kxe1 Qd5) 21. Qxf5 {[%emt 0:10:14]} (21. Qb3 {with more complications.} Qxf2+ 22. Kd1 Qxd4+ 23. Bd2) 21... Rxf5 {[%emt 0:00:02]} 22. Be3 {[%emt 0:00:36][%cal Bc1e3,Be3c5,Bc5b4,Bb4e7][%mdl 32]} c5 {[%emt 0:00:26]} 23. dxc5 {[%emt 0:00:53]} Bxc5 {[%emt 0:00:05] A strong pair of Bishops.} 24. O-O {[%emt 0:00:33]} h6 {[%emt 0:16:50]} 25. Bxc5 {[%emt 0:01:01]} hxg5 {[%emt 0:02:19]} 26. Bxb4 {[%emt 0:00:24]} gxh4 {[%emt 0:00:20][%cal Oh4h3]} 27. Be7 {[%emt 0:03:36]} h3 $1 {[%emt 0:07:18][%mdl 64] Deflection} 28. gxh3 {[%emt 0:01:09]} Rf3 {[%emt 0:07:50]} 29. Kh2 {[%emt 0:00:17]} Ba6 {[%emt 0:00:07]} 30. Rg1 {[%emt 0:00:38]} Rxf2+ {[%emt 0:00:05]} 31. Rg2 {[%emt 0:00:02]} Rf7 {[%emt 0:02:58]} 32. Bc5 {[%emt 0:02:01]} Re8 {[%emt 0:00:00]} 33. b4 {[%emt 0:00:51]} Bb7 {[%emt 0:00:02]} 34. Rf2 {[%emt 0:02:24]} Rxf2+ {[%emt 0:00:03][%mdl 64] Remove Defender} 35. Bxf2 $14 {[%emt 0:00:02][%mdl 4096] Endgame KRB-KRB} a6 {[%emt 0:00:01]} 36. h4 {[%emt 0:06:25][%cal Bh3h4,Bh4g5][%mdl 32]} Bd5 {[%emt 0:01:08]} 37. a4 {[%emt 0:00:18]} Bc6 {[%emt 0:00:32]} 38. Kg3 {[%emt 0:06:01][%cal Ob4b5]} Re4 {[%emt 0:00:04]} 39. Bc5 {[%emt 0:01:14]} Kh7 {[%emt 0:00:25]} 40. a5 {[%emt 0:01:04]} g5 {[%emt 0:01:22]} 41. hxg5 {[%emt 0:00:34]} Kg6 {[%emt 0:00:01]} 42. Rc1 {[%emt 0:03:15]} Bb5 {[%emt 0:00:10]} 43. Kf3 {[%emt 0:00:07]} Bc6 {[%emt 0:01:15] ...Rc4+ is the strong threat.} 44. Kf2 {[%emt 0:00:07]} Bb5 {[%emt 0:00:26]} 45. Be3 {[%emt 0:00:40]} Rxb4 {[%emt 0:00:08]} 46. Rd1 {[%emt 0:00:13]} Kf5 {[%emt 0:00:29]} 47. Rd6 {[%emt 0:00:45]} Rc4 {[%emt 0:00:58]} 48. Rf6+ {[%emt 0:03:03]} Ke5 {[%emt 0:00:00]} 49. Kf3 {[%emt 0:01:05]} Bc6+ {[%emt 0:00:45]} 50. Kg3 {[%emt 0:00:08] And now Bf4+ would win.} Rc3 {[%emt 0:00:14] [#]} 51. Kf2 {[%emt 0:02:24]} (51. Kh4 $1 $16) 51... Rc2+ {[%emt 0:00:05]} 52. Ke1 {[%emt 0:00:18]} Bb5 $1 {[%emt 0:00:08] White must now prevent ...Re2+.} 53. Bd2 {[%emt 0:01:07]} Rc6 {[%emt 0:02:06]} 54. Rf8 {[%emt 0:00:23]} Bd3 {[%emt 0:00:20]} 55. Kf2 {[%emt 0:00:50]} Kd5 {[%emt 0:00:16]} 56. Kf3 {[%emt 0:01:50]} Bg6 {[%emt 0:00:10]} 57. Kg4 {[%emt 0:00:50]} Ke6 {[%emt 0:00:13]} 58. Bf4 {[%emt 0:02:07]} Bd3 {[%emt 0:01:38]} 59. Rb8 {[%emt 0:02:22]} Be2+ {[%emt 0:00:22]} 60. Kg3 {[%emt 0:00:03] White is more active.} Kf5 {[%emt 0:00:12]} 61. Rb6 {[%emt 0:03:41]} Bb5 {[%emt 0:00:11] Hoping for ...Rc3+.} 62. Bd2 {[%emt 0:00:18] Against Rc3+} Rxb6 {[%emt 0:00:46]} 63. axb6 $11 {[%emt 0:00:01] Intending b7 and mate. KB-KB} Bc6 {[%emt 0:00:01]} 64. Kh4 {[%emt 0:00:31] Strongly threatening Kh5.} Kg6 {[%emt 0:00:09]} 65. Kg4 {[%emt 0:00:09]} Bh1 {[%emt 0:00:19]} 66. Kf4 {[%emt 0:00:05]} Bg2 {[%emt 0:00:17] [#]} 67. Ke3 $1 {[%emt 0:03:01] White is better.} a5 {[%emt 0:00:20]} 68. Kd4 {[%emt 0:00:08]} ({Much weaker is} 68. Bxa5 Kxg5 69. Kd4 Kf6 $11) 68... a4 {[%emt 0:00:03]} 69. Kc4 {[%emt 0:00:10]} Kf5 {[%emt 0:00:09]} 70. Kb4 {[%emt 0:00:07]} Bc6 {[%emt 0:00:03] Weighted Error Value: White=0.09 (flawless) /Black=0.08 (flawless)} 1/2-1/2

[Event "20th Delhi GM Open 2023"]
[Site "New Delhi"]
[Date "2023.03.28"]
[Round "8.2"]
[White "Dzhumaev, Marat"]
[Black "Aravindh, Chithambaram VR."]
[Result "0-1"]
[ECO "B08"]
[WhiteElo "2428"]
[BlackElo "2607"]
[Annotator "TA"]
[PlyCount "76"]
[EventDate "2023.03.23"]
[EventType "swiss"]
[EventCountry "IND"]
[SourceTitle "playchess.com"]
[Source "ChessBase"]
[SourceQuality "1"]
[TimeControl "5400+30"]

{[%evp 13,76,34,27,26,27,22,18,22,14,-12,0,-11,0,0,26,23,26,28,49,43,41,0,0,0,0,0,0,0,0,-37,-49,-47,-38,-104,-12,-16,-28,-66,-70,-73,-70,-165,-179,-162,-172,-160,-179,-353,-243,-375,-365,-437,-436,-436,-436,-410,-428,-434,-407,-521,-519,-879,-862,-853,-714]} 1. e4 {[%emt 0:02:51]} g6 {[%emt 0:00:07]} 2. d4 {[%emt 0:00:48]} Bg7 {[%emt 0:00:08]} 3. Nf3 {[%emt 0:03:22]} d6 {[%emt 0:00:10]} 4. Nc3 {[%emt 0:00:36]} a6 {[%emt 0:00:18]} 5. a4 {[%emt 0:04:46]} Nf6 {[%emt 0:02:14]} 6. Be2 {[%emt 0:01:17]} O-O {[%emt 0:00:10]} 7. O-O {[%emt 0:00:10]} Nc6 {[%emt 0:00:11]} 8. d5 {[%emt 0:11:29] B08: Pirc Defence: Classical System.} Nb4 {[%emt 0:00:08]} 9. a5 {[%emt 0:04:10]} e6 $1 {[%emt 0:00:09]} 10. Bg5 {The position is equal.} h6 {[%emt 0:03:28]} 11. Bh4 {[%emt 0:17:53]} g5 {[%emt 0:10:50]} 12. Bg3 {[%emt 0:00:12]} exd5 {[%emt 0:32:45]} 13. exd5 {[%emt 0:00:22] [#]} Nh5 $146 {[%emt 0:00:04]} ({Predecessor:} 13... Bd7 14. Bc4 Bb5 15. Nxb5 axb5 16. Bb3 Na6 17. Nd4 Nc5 18. Nf5 Qd7 19. Nxg7 Kxg7 {1-0 Eswaran,A (2234)-Foisor,S (2276) USA-ch (Women) 59th 2019 (3)}) 14. Ra4 {[%emt 0:18:51]} Nxg3 {[%emt 0:00:15]} 15. fxg3 {[%emt 0:00:51]} ({Reject} 15. hxg3 c5 $11) 15... c5 {[%emt 0:01:08]} 16. dxc6 {[%emt 0:00:11]} Nxc6 {[%emt 0:00:22]} 17. Nd5 {[%emt 0:00:21]} (17. h4 $5) 17... Nxa5 {[%emt 0:02:45]} 18. h4 {[%emt 0:02:03]} b5 {[%emt 0:03:54]} (18... Bxb2 $2 19. Nd4 f5 20. c3 $18) 19. Rxa5 {[%emt 0:10:45][%mdl 64] [#] Deflection} Qxa5 {[%emt 0:00:06]} 20. hxg5 {[%emt 0:05:14]} Qd8 $1 {[%emt 0:01:28]} (20... Bxb2 21. Ne7+ Kg7 22. gxh6+ (22. Qxd6 hxg5 23. Nd4 Bxd4+ 24. Qxd4+ f6 $11) 22... Kh8 23. Ng5 Qb6+ 24. Kh2 $18) 21. Qd2 {[%emt 0:02:14]} hxg5 {[%emt 0:06:13]} (21... Bxb2 $2 22. c3 f5 23. gxf6 Rxf6 24. Nxf6+ Qxf6 25. Qd5+ Qf7 26. Qxa8 $18) 22. Nd4 {[%emt 0:01:00]} Bb7 {[%emt 0:15:21] Wards off Nc6} 23. Nf5 {[%emt 0:02:09]} (23. Bf3 $1 $15) 23... Re8 {[%emt 0:00:10]} (23... Bxb2 $2 24. Nde7+ $18) (23... Bxd5 $17 24. Qxd5 Rc8) 24. Nxg7 $11 {[%emt 0:09:00] Excellent horsemanship.} Re5 $36 {[%emt 0:03:40][%mdl 2048] White is under pressure.} 25. Nh5 {[%emt 0:00:29] aiming for Ndf6+.} Rxd5 {[%emt 0:00:05]} 26. Bd3 {[%emt 0:01:39]} Re5 {[%emt 0:02:35] ...Qb6+ would be deadly.} 27. Qf2 {[%emt 0:00:23] Against Qb6} ({Better is} 27. Kh2 $15) 27... Qe7 $19 {[%emt 0:00:04][%cal Of7f5] ...f5! is the strong threat.} 28. Nf6+ {[%emt 0:00:28] [#]} Kg7 $1 {[%emt 0:00:07][%cal Bg8g7,Bg7f8,Bf8e7][%mdl 32]} 29. Nh5+ {[%emt 0:00:32]} Kf8 {[%emt 0:00:04]} 30. Qd4 $2 {[%emt 0:00:44]} (30. Nf6) 30... Bc8 {[%emt 0:02:05] White must now prevent ...Qa7.} 31. Rf6 {[%emt 0:00:22]} (31. Kh2 $142) 31... Qa7 {[%emt 0:00:38]} 32. Rxd6 {[%emt 0:00:42]} Qxd4+ {[%emt 0:00:22]} 33. Rxd4 {[%emt 0:00:04]} Ke7 {[%emt 0:00:05] Dodges Nf6} 34. g4 {[%emt 0:00:09]} Be6 {[%emt 0:00:27]} 35. Ng3 {[%emt 0:00:42]} Rd8 {[%emt 0:00:34]} 36. Rb4 {[%emt 0:00:14]} a5 {[%emt 0:00:42] Black is clearly winning.} 37. Re4 {[%emt 0:00:19]} (37. Rxb5 $142 Rxb5 38. Bxb5) 37... Rxe4 {[%emt 0:00:13]} 38. Nxe4 {[%emt 0:00:04]} b4 {[%emt 0:01:37] Weighted Error Value: White=0.51/Black=0.09 (flawless)} 0-1